bitfinex-derivatives/quotes_SOLF0:USTF0_20260304
["timestamp","ask_amount","ask_price","bid_price","bid_amount"]
[1772651161509,3.62178242,92.559,92.451,3.83425803]
[1772651162209,3.62178242,92.543,92.472,9.729]
[1772651162406,3.62178242,92.543,92.471,3.83425803]
[1772651162605,3.62178242,92.579,92.471,3.83425803]
[1772651162908,3.62178242,92.554,92.471,3.83425803]
[1772651164702,3.62178242,92.554,92.47,7.18961407]
[1772651164703,3.62178242,92.6,92.53,7.18961407]
[1772651165099,3.62178242,92.6,92.511,3.83425803]
[1772651165303,3.62178242,92.598,92.511,3.83425803]
[1772651166210,9.717,92.584,92.511,3.83425803]
[1772651166404,3.62178242,92.598,92.511,3.83425803]
[1772651166598,3.62178242,92.633,92.53,3.83425803]
[1772651166805,3.62178242,92.669,92.571,3.83425803]
[1772651168010,9.711,92.637,92.574,9.718]
[1772651168213,3.62178242,92.648,92.571,3.83425803]
[1772651169410,9.71,92.647,92.583,9.717]
[1772651170314,3.62178242,92.648,92.592,9.716]
[1772651170505,10.81139649,92.67,92.571,3.83425803]
[1772651170811,10.81139649,92.67,92.57,7.18961407]
[1772651170812,3.62178242,92.67,92.591,3.83425803]
[1772651171411,3.62178242,92.657,92.591,3.83425803]
[1772651172514,9.71,92.656,92.591,3.83425803]
[1772651172811,3.62178242,92.656,92.571,3.83425803]
[1772651173013,9.711,92.646,92.589,9.716]
[1772651173413,3.62178242,92.656,92.571,3.83425803]
[1772651173913,3.62178242,92.656,92.6,9.715]
[1772651174515,3.62178242,92.656,92.558,3.83425803]
[1772651175208,3.62178242,92.646,92.577,9.718]
[1772651175614,3.62178242,92.646,92.558,3.83425803]
[1772651176316,7.18961407,92.64,92.558,3.83425803]
[1772651176512,3.62178242,92.639,92.567,9.719]
[1772651176717,3.62178242,92.639,92.497,13.00378051]
[1772651176718,3.62178242,92.619,92.531,3.83425803]
[1772651177320,9.715,92.603,92.546,9.721]
[1772651177820,3.62178242,92.619,92.546,9.721]
[1772651178614,3.62178242,92.619,92.531,3.83425803]
[1772651178924,11.02044962,92.6,92.531,3.83425803]
[1772651179221,7.18961407,92.64,92.508,3.87937453]
[1772651179222,3.83083555,92.579,92.508,3.87937453]
[1772651179434,151.086,92.63,92.47,9.75283538]
[1772651179435,3.83083555,92.559,92.487,3.87937453]
[1772651180026,9.721,92.55,92.487,3.87937453]
[1772651180425,9.722,92.532,92.487,3.87937453]
[1772651180727,9.722,92.532,92.45,7.18961407]
[1772651180728,9.722,92.532,92.466,3.87937453]
[1772651180924,3.83083555,92.531,92.466,3.87937453]
[1772651181122,3.83083555,92.519,92.438,3.87937453]
[1772651181728,9.725,92.505,92.441,9.732]
[1772651181931,7.18961407,92.5,92.438,3.87937453]
[1772651182826,7.18961407,92.52,92.44,3.87937453]
[1772651183129,11.02044962,92.52,92.44,3.87937453]
[1772651183332,3.83083555,92.519,92.44,3.87937453]
[1772651183923,9.724,92.519,92.447,9.731]
[1772651184226,3.83083555,92.518,92.447,9.731]
[1772651184428,3.83083555,92.518,92.44,3.87937453]
[1772651185721,3.83083555,92.515,92.44,3.87937453]
[1772651186633,9.725,92.505,92.441,9.732]
[1772651186831,7.18961407,92.52,92.44,3.87937453]
[1772651186832,3.60948547,92.504,92.44,3.87937453]
[1772651187226,3.60948547,92.497,92.419,3.81728848]
[1772651187826,3.60948547,92.494,92.423,9.734]
[1772651188027,3.60948547,92.552,92.424,3.81728848]
[1772651188222,3.60948547,92.552,92.357,13.00378051]
[1772651188223,13.32748547,92.574,92.502,9.726]
[1772651188426,13.32748547,92.574,92.501,3.81728848]
[1772651188427,3.60948547,92.574,92.501,3.81728848]
[1772651188629,3.60948547,92.574,92.52,7.18961407]
[1772651188830,7.18961407,92.61,92.52,7.18961407]
[1772651188831,3.60948547,92.596,92.521,9.724]
[1772651189133,3.60948547,92.596,92.52,7.18961407]
[1772651189334,9.717,92.584,92.511,3.81728848]
[1772651189630,3.60948547,92.584,92.511,3.81728848]
[1772651189840,3.60948547,92.584,92.53,7.18961407]
[1772651190030,9.713,92.62,92.531,3.81728848]
[1772651190335,7.18961407,92.65,92.531,3.81728848]
[1772651190536,7.18961407,92.61,92.51,7.18961407]
[1772651191031,9.718,92.575,92.51,7.18961407]
[1772651191231,7.18961407,92.61,92.51,7.18961407]
[1772651191533,7.18961407,92.61,92.508,13.54228848]
[1772651191735,9.719,92.57,92.508,13.54228848]
[1772651192638,3.60948547,92.576,92.517,9.724]
[1772651192936,3.60948547,92.576,92.508,3.81728848]
[1772651193138,3.60948547,92.573,92.508,3.81728848]
[1772651193532,3.60948547,92.573,92.49,11.00690255]
[1772651193733,3.60948547,92.573,92.491,3.81728848]
[1772651193928,3.60948547,92.573,92.519,9.724]
[1772651195330,3.60948547,92.592,92.528,9.723]
[1772651195535,3.60948547,92.592,92.511,3.81728848]
[1772651195837,13.32648547,92.58,92.518,9.724]
[1772651196029,3.60948547,92.579,92.518,9.724]
[1772651196930,3.60948547,92.573,92.511,3.81728848]
[1772651197135,3.60948547,92.573,92.508,9.725]
[1772651197528,9.719,92.562,92.497,9.726]
[1772651197933,6.219,92.562,92.497,9.726]
[1772651198434,3.60948547,92.529,92.44,3.81728848]
[1772651199037,3.60948547,92.521,92.44,3.81728848]
[1772651199237,3.60948547,92.521,92.45,7.21357875]
[1772651200435,3.60948547,92.521,92.455,9.73]
[1772651200736,7.21357875,92.58,92.44,3.81728848]
[1772651200737,3.60948547,92.519,92.44,3.81728848]
[1772651201440,3.60948547,92.49,92.419,9.734]
[1772651202643,13.33648547,92.487,92.419,9.734]
[1772651202843,3.60948547,92.486,92.419,9.734]
[1772651203345,3.60948547,92.486,92.428,9.733]
[1772651204144,3.60948547,92.486,92.411,3.81728848]
[1772651204145,3.60948547,92.506,92.438,3.81728848]
[1772651204636,13.33448547,92.506,92.448,9.731]
[1772651204836,3.60948547,92.505,92.448,9.731]
[1772651205738,3.60948547,92.503,92.438,13.54928848]
[1772651206945,3.60948547,92.501,92.447,9.731]
[1772651208149,3.60948547,92.511,92.453,3.81728848]
[1772651208446,7.21357875,92.52,92.453,3.81728848]
[1772651208447,3.60140752,92.519,92.453,3.81728848]
[1772651208651,9.727,92.485,92.43,3.91051175]
[1772651208949,3.60140752,92.499,92.43,3.91051175]
[1772651209647,3.60140752,92.499,92.44,9.732]
[1772651210249,9.726,92.497,92.44,9.732]
[1772651210453,3.60140752,92.499,92.43,3.91051175]
[1772651211148,3.60140752,92.479,92.418,9.734]
[1772651211853,3.60140752,92.479,92.426,9.734]
[1772651212056,3.60140752,92.479,92.407,3.91051175]
[1772651213352,3.60140752,92.479,92.434,9.733]
[1772651213752,3.60140752,92.479,92.407,3.91051175]
[1772651214156,9.73,92.46,92.413,9.735]
[1772651214460,3.60140752,92.479,92.385,3.91051175]
[1772651214751,7.21357875,92.48,92.385,3.91051175]
[1772651214752,9.732,92.444,92.385,3.91051175]
[1772651214948,3.60140752,92.443,92.385,3.91051175]
[1772651215559,3.60140752,92.463,92.385,3.91051175]
[1772651216358,3.60140752,92.459,92.385,3.91051175]
[1772651218558,3.60140752,92.479,92.401,3.91051175]
[1772651219151,9.73,92.465,92.411,9.735]
[1772651219355,3.60140752,92.479,92.401,3.91051175]
[1772651220153,9.729,92.474,92.419,9.734]
[1772651220358,7.21357875,92.5,92.42,3.91051175]
[1772651220359,3.60140752,92.499,92.42,3.91051175]
[1772651221053,9.729,92.474,92.42,3.91051175]
[1772651221461,3.60140752,92.479,92.409,9.735]
[1772651221462,9.73,92.464,92.409,9.735]
[1772651221660,3.60140752,92.464,92.401,3.91051175]
[1772651222262,13.33140752,92.464,92.414,9.735]
[1772651222456,3.60140752,92.463,92.401,3.91051175]
[1772651222656,3.60140752,92.463,92.382,3.91051175]
[1772651224359,9.732,92.44,92.387,9.738]
[1772651225157,9.734,92.424,92.367,3.91051175]
[1772651225756,3.60140752,92.439,92.367,3.91051175]
[1772651225963,3.60140752,92.439,92.341,3.91051175]
[1772651226162,3.60140752,92.439,92.34,7.21357875]
[1772651226163,3.60140752,92.439,92.343,3.91051175]
[1772651226559,3.60140752,92.421,92.347,3.91051175]
[1772651227066,9.736,92.408,92.349,3.91051175]
[1772651227265,3.60140752,92.419,92.34,7.21357875]
[1772651227467,3.60140752,92.419,92.33,3.91051175]
[1772651227859,3.60140752,92.4,92.33,3.91051175]
[1772651228061,10.81498627,92.4,92.33,3.91051175]
[1772651228260,3.60140752,92.399,92.312,1.88413644]
[1772651228460,9.739,92.379,92.317,9.745]
[1772651228660,3.60140752,92.399,92.318,3.91051175]
[1772651228860,9.736,92.402,92.34,3.91051175]
[1772651229165,3.60140752,92.419,92.34,3.91051175]
[1772651230361,9.737,92.392,92.34,3.91051175]
[1772651230557,3.60140752,92.419,92.34,3.91051175]
[1772651230863,9.737,92.396,92.34,3.91051175]
[1772651231069,3.60140752,92.419,92.34,3.91051175]
[1772651231466,3.60140752,92.395,92.323,9.744]
[1772651231663,3.60140752,92.395,92.323,3.91051175]
[1772651231971,8.48090948,92.448,92.302,1.88434048]
[1772651231972,3.60140752,92.378,92.302,1.88434048]
[1772651232165,3.60140752,92.378,92.29,3.91051175]
[1772651232773,3.60140752,92.36,92.29,3.91051175]
[1772651233265,3.60140752,92.359,92.27,3.91051175]
[1772651233657,9.743,92.337,92.27,3.91051175]
[1772651234259,9.743,92.335,92.271,9.75]
[1772651234468,13.34440752,92.335,92.271,9.75]
[1772651235473,9.744,92.325,92.27,3.91051175]
[1772651236473,9.744,92.329,92.27,3.91051175]
[1772651237175,3.60140752,92.334,92.272,3.91051175]
[1772651237473,9.743,92.339,92.272,3.91051175]
[1772651237673,9.743,92.34,92.274,3.91051175]
[1772651237878,3.60140752,92.353,92.274,3.91051175]
[1772651238277,9.744,92.33,92.275,9.749]
[1772651238477,3.60140752,92.353,92.275,13.60776538]
[1772651239271,9.744,92.331,92.275,3.85876538]
[1772651239580,7.21357875,92.36,92.26,7.21357875]
[1772651239581,3.70118742,92.359,92.265,3.85876538]
[1772651239974,9.742,92.35,92.284,3.85876538]
[1772651241179,3.70118742,92.359,92.296,9.747]
[1772651241676,3.70118742,92.38,92.301,3.85876538]
[1772651241878,19.465,92.44,92.28,7.21357875]
[1772651241879,3.70118742,92.4,92.321,3.85876538]
[1772651242077,9.738,92.387,92.326,3.85876538]
[1772651242683,3.70118742,92.399,92.326,3.85876538]
[1772651242978,3.70118742,92.374,92.3,3.85876538]
[1772651243377,3.70118742,92.393,92.311,3.85876538]
[1772651243574,9.738,92.388,92.311,3.85876538]
[1772651243775,3.70118742,92.419,92.336,3.85876538]
[1772651245475,9.736,92.4,92.338,3.85876538]
[1772651246386,9.736,92.4,92.341,13.43484286]
[1772651246682,9.736,92.4,92.342,3.69184286]
[1772651247475,9.735,92.409,92.345,3.69184286]
[1772651247678,3.70118742,92.419,92.351,3.69184286]
[1772651248276,3.6707626,92.439,92.351,3.69184286]
[1772651248589,151.32,92.487,92.339,9.743]
[1772651248590,9.738,92.389,92.339,9.743]
[1772651248887,3.6707626,92.41,92.332,3.69184286]
[1772651249081,7.21357875,92.44,92.358,9.741]
[1772651249283,3.6707626,92.439,92.359,3.69184286]
[1772651249987,9.733,92.428,92.372,3.69184286]
[1772651250382,3.6707626,92.439,92.36,7.21357875]
[1772651250576,3.6707626,92.439,92.361,3.69184286]
[1772651251383,9.734,92.421,92.364,3.69184286]
[1772651252378,9.734,92.421,92.368,9.74]
[1772651254586,9.734,92.421,92.371,9.739]
[1772651254788,9.733,92.43,92.371,9.739]
[1772651255087,9.733,92.43,92.372,3.69184286]
[1772651255387,9.733,92.43,92.375,3.69184286]
[1772651256792,9.733,92.43,92.327,13.0231921]
[1772651256793,3.6707626,92.439,92.352,3.69184286]
[1772651256980,3.6707626,92.419,92.352,3.69184286]
[1772651257380,7.21357875,92.44,92.353,3.69184286]
[1772651257585,3.6707626,92.439,92.361,3.69184286]
[1772651257889,9.734,92.425,92.361,3.69184286]
[1772651259384,9.734,92.425,92.369,9.74]
[1772651260589,9.734,92.425,92.376,9.739]
[1772651261783,3.6707626,92.439,92.377,3.69184286]
[1772651262090,3.6707626,92.457,92.377,3.69184286]
[1772651262583,3.6707626,92.449,92.355,3.69184286]
[1772651262788,3.6707626,92.429,92.334,3.69184286]
[1772651262990,3.6707626,92.409,92.334,3.69184286]
[1772651263785,9.737,92.394,92.342,9.742]
[1772651263986,3.6707626,92.431,92.334,3.69184286]
[1772651264188,9.735,92.414,92.362,9.74]
[1772651264886,3.6707626,92.431,92.354,9.741]
[1772651264887,9.736,92.407,92.354,9.741]
[1772651265086,3.6707626,92.431,92.351,3.69184286]
[1772651266289,3.6707626,92.45,92.379,3.69184286]
[1772651267192,9.733,92.435,92.383,9.738]
[1772651267991,9.732,92.444,92.389,3.69184286]
[1772651268591,3.60313971,92.473,92.391,3.82207475]
[1772651269595,3.60313971,92.473,92.412,3.82207475]
[1772651269795,7.22483692,92.49,92.412,3.82207475]
[1772651270090,7.22483692,92.49,92.393,9.82094744]
[1772651270091,3.60313971,92.472,92.393,3.82207475]
[1772651270287,3.60313971,92.469,92.393,3.82207475]
[1772651270485,3.60313971,92.449,92.365,3.82207475]
[1772651270685,3.60313971,92.449,92.341,3.82207475]
[1772651270889,3.60313971,92.429,92.341,3.82207475]
[1772651271096,3.60313971,92.416,92.361,9.74]
[1772651272196,3.60313971,92.413,92.361,9.74]
[1772651272596,3.60313971,92.413,92.32,7.22483692]
[1772651272597,3.60313971,92.439,92.363,3.82207475]
[1772651272793,9.732,92.443,92.363,3.82207475]
[1772651273797,3.60313971,92.469,92.394,9.737]
[1772651273798,9.731,92.454,92.394,9.737]
[1772651273993,3.60313971,92.469,92.359,3.82207475]
[1772651274192,9.734,92.428,92.374,9.739]
[1772651274598,3.60313971,92.449,92.361,3.82207475]
[1772651274899,3.60313971,92.449,92.384,9.738]
[1772651275494,3.60313971,92.438,92.374,9.739]
[1772651276390,9.733,92.431,92.374,9.739]
[1772651276694,3.60313971,92.438,92.383,9.738]
[1772651277799,9.733,92.436,92.383,9.738]
[1772651280292,13.33613971,92.434,92.383,9.738]
[1772651280693,13.33613971,92.434,92.361,3.82207475]
[1772651280694,9.733,92.432,92.374,9.739]
[1772651280901,3.60313971,92.431,92.374,9.739]
[1772651282101,3.60313971,92.431,92.382,9.738]
[1772651282602,7.22483692,92.41,92.346,9.82094744]
[1772651282802,7.22483692,92.41,92.345,9.82094744]
[1772651283100,9.735,92.411,92.362,9.74]
[1772651283598,3.60313971,92.431,92.356,3.82207475]
[1772651283797,3.60313971,92.431,92.359,3.82207475]
[1772651284097,9.733,92.429,92.379,9.739]
[1772651284803,3.60313971,92.431,92.35,7.22483692]
[1772651284804,9.734,92.421,92.369,3.82207475]
[1772651285004,3.60313971,92.431,92.369,3.82207475]
[1772651285200,3.60313971,92.431,92.374,9.82094744]
[1772651285396,9.733,92.43,92.374,9.82094744]
[1772651285594,9.733,92.43,92.372,3.82207475]
[1772651285799,9.733,92.43,92.374,9.82094744]
[1772651286301,9.733,92.43,92.378,9.82094744]
[1772651286501,9.733,92.43,92.379,3.82207475]
[1772651286902,3.60313971,92.449,92.382,9.82094744]
[1772651287105,3.60313971,92.449,92.381,3.82207475]
[1772651288407,9.733,92.431,92.383,9.82094744]
[1772651288807,9.733,92.431,92.382,9.82094744]
[1772651289007,9.733,92.431,92.383,9.82094744]
[1772651289204,9.733,92.431,92.384,9.82094744]
[1772651289410,9.732,92.444,92.387,13.64302219]
[1772651289611,3.60313971,92.463,92.394,3.82207475]
[1772651289807,10.82797663,92.45,92.394,3.82207475]
[1772651290207,3.60313971,92.469,92.403,3.82207475]
[1772651290408,3.60313971,92.469,92.408,13.64302219]
[1772651290604,3.60313971,92.469,92.409,13.64302219]
[1772651290805,3.60313971,92.469,92.409,3.82207475]
[1772651291111,3.60313971,92.469,92.353,19.483]
[1772651291112,3.60313971,92.449,92.371,3.82207475]
[1772651291909,3.60313971,92.449,92.373,3.82207475]
[1772651292106,3.60313971,92.467,92.373,3.82207475]
[1772651292306,9.731,92.451,92.4,3.82207475]
[1772651293212,3.60313971,92.467,92.403,3.82207475]
[1772651293613,9.73,92.456,92.403,3.82207475]
[1772651294412,9.731,92.449,92.403,3.82207475]
[1772651294815,3.60313971,92.459,92.403,3.82207475]
[1772651295316,3.60313971,92.479,92.403,3.82207475]
[1772651295612,3.60313971,92.479,92.404,3.82207475]
[1772651295815,3.60313971,92.461,92.371,3.82207475]
[1772651296214,3.60313971,92.461,92.392,9.737]
[1772651296512,3.60313971,92.461,92.393,3.82207475]
[1772651296711,3.60313971,92.479,92.393,3.82207475]
[1772651297026,3.60313971,92.479,92.408,9.735]
[1772651297319,3.60313971,92.479,92.393,3.82207475]
[1772651297814,9.73,92.457,92.407,9.736]
[1772651298415,9.731,92.448,92.399,9.736]
[1772651299324,9.731,92.448,92.399,13.6546919]
[1772651300422,9.73,92.456,92.402,3.9186919]
[1772651300619,3.85517236,92.478,92.402,3.9186919]
[1772651302622,3.85517236,92.458,92.402,3.9186919]
[1772651303121,9.731,92.447,92.402,3.9186919]
[1772651303419,3.85517236,92.479,92.402,3.9186919]
[1772651303820,3.85517236,92.479,92.406,3.9186919]
[1772651305529,9.73,92.465,92.414,9.735]
[1772651305824,9.73,92.465,92.406,3.9186919]
[1772651306021,9.73,92.465,92.409,3.65798003]
[1772651306221,9.73,92.465,92.421,3.65798003]
[1772651306521,3.85517236,92.479,92.421,3.65798003]
[1772651306727,3.70904538,92.496,92.431,3.65798003]
[1772651307327,9.727,92.488,92.439,9.732]
[1772651307629,3.70904538,92.496,92.439,9.732]
[1772651308128,9.728,92.48,92.432,3.65798003]
[1772651308828,9.728,92.48,92.434,3.65798003]
[1772651309327,9.729,92.473,92.413,3.65798003]
[1772651309532,3.70904538,92.478,92.421,9.734]
[1772651309832,9.729,92.466,92.421,9.734]
[1772651310027,3.70904538,92.478,92.413,3.65798003]
[1772651310226,3.70904538,92.469,92.396,3.65798003]
[1772651311023,9.731,92.448,92.396,3.65798003]
[1772651312029,3.70904538,92.467,92.397,3.65798003]
[1772651312638,3.70904538,92.467,92.4,3.65798003]
[1772651312832,9.729,92.466,92.417,9.735]
[1772651313032,9.729,92.466,92.417,13.39298003]
[1772651313336,9.729,92.466,92.418,3.65798003]
[1772651314036,9.73,92.459,92.4,3.65798003]
[1772651314729,3.70904538,92.468,92.41,3.65798003]
[1772651315833,9.729,92.467,92.41,13.39298003]
[1772651316029,3.70904538,92.468,92.41,3.65798003]
[1772651316230,3.70904538,92.468,92.383,19.94445029]
[1772651316231,3.70904538,92.468,92.392,3.65798003]
[1772651316537,10.09023113,92.503,92.387,13.29981248]
[1772651316538,3.70904538,92.489,92.401,1.75937106]
[1772651317329,3.70904538,92.489,92.402,1.75937106]
[1772651317632,3.70904538,92.464,92.402,1.75937106]
[1772651317937,3.70904538,92.464,92.384,1.75937106]
[1772651318238,3.70904538,92.464,92.391,1.65191118]
[1772651319238,3.70904538,92.464,92.392,1.65191118]
[1772651319440,9.731,92.451,92.394,9.737]
[1772651319937,3.70904538,92.459,92.381,13.29981248]
[1772651320141,3.70904538,92.459,92.377,1.65191118]
[1772651321437,3.70904538,92.427,92.371,13.29981248]
[1772651321739,3.70904538,92.427,92.367,1.66649091]
[1772651321932,3.70904538,92.427,92.377,9.739]
[1772651322330,9.732,92.438,92.381,1.65473433]
[1772651323041,3.70904538,92.458,92.388,1.65473433]
[1772651323336,3.70904538,92.479,92.401,1.65473433]
[1772651323730,9.729,92.466,92.411,1.65473433]
[1772651323937,3.70904538,92.479,92.411,1.65473433]
[1772651324339,3.70904538,92.479,92.395,1.65473433]
[1772651325437,9.73,92.458,92.408,9.735]
[1772651325641,9.73,92.458,92.409,1.62369724]
[1772651325941,3.70904538,92.479,92.409,1.62369724]
[1772651326443,9.729,92.467,92.412,1.62369724]
[1772651326641,3.70904538,92.479,92.412,1.62369724]
[1772651327341,9.729,92.467,92.412,1.62369724]
[1772651327544,7.22280553,92.49,92.412,1.62369724]
[1772651327545,3.70904538,92.466,92.412,1.62369724]
[1772651327944,3.70904538,92.466,92.395,1.63065133]
[1772651328843,9.73,92.462,92.407,1.63184597]
[1772651330039,3.92479443,92.484,92.411,1.64303187]
[1772651331245,9.729,92.466,92.411,1.64303187]
[1772651331745,9.73,92.458,92.411,1.64303187]
[1772651333043,3.92479443,92.485,92.411,1.64303187]
[1772651334442,3.92479443,92.473,92.421,9.734]
[1772651334646,3.92479443,92.473,92.406,13.29981248]
[1772651334838,3.92479443,92.473,92.401,13.29981248]
[1772651335247,3.92479443,92.462,92.41,9.735]
[1772651337451,9.73,92.459,92.402,13.29981248]
[1772651337751,3.92479443,92.458,92.402,13.29981248]
[1772651338250,3.92479443,92.458,92.401,9.736]
[1772651338450,3.92479443,92.458,92.394,14.82762516]
[1772651338640,3.92479443,92.458,92.394,1.52781268]
[1772651339045,7.22280553,92.48,92.37,7.22280553]
[1772651339046,3.92479443,92.453,92.39,14.83338829]
[1772651339241,3.92479443,92.453,92.392,13.29981248]
[1772651339443,3.92479443,92.453,92.398,13.29981248]
[1772651339650,9.729,92.467,92.415,9.735]
[1772651339943,3.92479443,92.471,92.4,1.53357581]
[1772651340552,9.73,92.46,92.415,9.735]
[1772651340855,3.92479443,92.46,92.394,13.29981248]
[1772651341053,3.92479443,92.46,92.395,1.53357581]
[1772651341352,3.92479443,92.46,92.404,1.53115821]
[1772651342349,13.65479443,92.46,92.413,9.735]
[1772651342954,3.92479443,92.46,92.413,9.735]
[1772651343156,9.729,92.468,92.418,9.734]
[1772651343852,9.73,92.46,92.414,1.53115821]
[1772651344153,3.92479443,92.477,92.414,1.53115821]
[1772651344949,3.92479443,92.467,92.414,1.53115821]
[1772651345152,3.92479443,92.459,92.387,13.29981248]
[1772651345458,3.92479443,92.459,92.344,52.73453121]
[1772651345459,3.92479443,92.459,92.381,1.48116134]
[1772651346153,3.92479443,92.459,92.397,1.48116134]
[1772651346857,3.92479443,92.478,92.411,1.48116134]
[1772651347556,8.60275892,92.507,92.432,1.48044346]
[1772651347557,3.92479443,92.498,92.432,1.48044346]
[1772651349256,3.92479443,92.498,92.415,14.70980438]
[1772651349462,3.92479443,92.498,92.415,1.4099919]
[1772651349658,9.729,92.472,92.415,1.4099919]
[1772651349857,3.92479443,92.474,92.415,1.4099919]
[1772651350661,3.92479443,92.499,92.435,9.733]
[1772651351559,3.92479443,92.482,92.415,1.4099919]
[1772651351958,9.729,92.473,92.415,1.4099919]
[1772651352661,3.92479443,92.482,92.415,1.4099919]
[1772651353660,9.729,92.467,92.415,1.4099919]
[1772651353955,3.92479443,92.482,92.415,1.4099919]
[1772651355261,3.92479443,92.482,92.416,13.29981248]
[1772651355462,9.728,92.477,92.423,9.734]
[1772651355664,3.92479443,92.476,92.406,13.29981248]
[1772651355864,8.62956522,92.505,92.421,1.19186893]
[1772651356064,3.92479443,92.515,92.421,1.19186893]
[1772651356265,9.726,92.494,92.449,9.731]
[1772651356663,3.92479443,92.532,92.441,1.19186893]
[1772651356874,3.92479443,92.532,92.44,7.22280553]
[1772651356875,9.723,92.529,92.464,1.19186893]
[1772651357568,9.724,92.521,92.464,1.19186893]
[1772651358269,9.724,92.521,92.476,9.728]
[1772651358467,3.92479443,92.532,92.464,1.19186893]
[1772651358468,9.723,92.529,92.464,1.19186893]
[1772651359070,13.42392046,92.529,92.464,1.19186893]
[1772651359267,3.70092046,92.525,92.464,1.19186893]
[1772651359468,3.70092046,92.525,92.46,7.22280553]
[1772651360464,9.724,92.516,92.464,9.73]
[1772651360766,3.70092046,92.525,92.46,7.22280553]
[1772651360973,3.70092046,92.525,92.461,1.36586893]
[1772651361866,13.42392046,92.525,92.478,9.728]
[1772651362271,13.42392046,92.525,92.461,1.36586893]
[1772651363468,13.42392046,92.525,92.47,9.729]
[1772651363772,9.724,92.521,92.47,9.729]
[1772651364374,3.70092046,92.52,92.47,9.729]
[1772651364671,3.70092046,92.52,92.48,3.36427677]
[1772651366469,3.70092046,92.52,92.47,3.36427677]
[1772651367070,3.83121506,92.517,92.48,3.36427677]
[1772651368069,9.724,92.516,92.471,9.729]
[1772651368775,13.55521506,92.516,92.471,9.729]
[1772651369480,3.83121506,92.515,92.471,9.729]
[1772651371176,3.83121506,92.514,92.441,1.63750432]
[1772651372277,3.83121506,92.514,92.422,1.63750432]
[1772651372879,3.83121506,92.489,92.422,1.63750432]
[1772651373979,13.55821506,92.489,92.442,9.732]
[1772651374280,3.83121506,92.489,92.438,1.60806878]
[1772651374475,3.83121506,92.486,92.421,1.60806878]
[1772651375279,9.729,92.472,92.422,9.734]
[1772651375480,3.83121506,92.486,92.421,1.60806878]
[1772651376378,9.729,92.473,92.429,9.733]
[1772651378482,13.56021506,92.473,92.429,9.733]
[1772651378984,9.729,92.47,92.421,1.60806878]
[1772651379284,13.56021506,92.47,92.421,1.60806878]
[1772651379486,13.56021506,92.47,92.422,9.734]
[1772651380189,13.56021506,92.47,92.383,19.8377586]
[1772651380190,3.83121506,92.464,92.404,1.47240196]
[1772651380386,3.83121506,92.464,92.381,1.47240196]
[1772651380589,3.83121506,92.459,92.381,1.47240196]
[1772651381481,3.83121506,92.442,92.395,9.737]
[1772651382391,3.83121506,92.479,92.391,1.48609555]
[1772651382985,3.83121506,92.479,92.356,19.8377586]
[1772651382986,3.83121506,92.432,92.371,1.48609555]
[1772651383494,9.734,92.422,92.371,1.48609555]
[1772651383891,13.56521506,92.422,92.371,1.48609555]
[1772651384091,3.83121506,92.421,92.371,1.48609555]
[1772651384294,7.21944218,92.46,92.371,1.48609555]
[1772651384295,3.83121506,92.437,92.371,1.48609555]
[1772651384890,13.56421506,92.436,92.388,9.738]
[1772651385990,3.83121506,92.429,92.362,1.47537936]
[1772651387487,13.56621506,92.413,92.362,1.47537936]
[1772651387990,7.21944218,92.38,92.288,0.00057027]
[1772651388185,3.83121506,92.359,92.285,1.48547886]
[1772651388387,3.83121506,92.359,92.236,19.508]
[1772651388388,3.83121506,92.359,92.288,1.49387104]
[1772651388896,9.741,92.356,92.298,1.49387104]
[1772651389089,3.82070225,92.355,92.287,1.88482526]
[1772651389287,3.82070225,92.355,92.28,1.49387104]
[1772651389685,7.21944218,92.36,92.267,1.88512646]
[1772651389686,3.82070225,92.337,92.267,1.88512646]
[1772651390892,3.82070225,92.323,92.263,1.46036619]
[1772651391992,3.82070225,92.317,92.253,9.752]
[1772651392192,3.82070225,92.317,92.247,1.88552991]
[1772651392398,3.82070225,92.317,92.248,1.57943866]
[1772651392599,9.745,92.316,92.259,1.57943866]
[1772651393398,3.82070225,92.317,92.261,1.56738058]
[1772651393595,3.82070225,92.349,92.261,1.56738058]
[1772651393797,9.745,92.322,92.263,1.56738058]
[1772651394492,13.56570225,92.322,92.263,1.56738058]